[Event "Bamberg-Open 2019"]
[Site "Bamberg"]
[Date "2019.06.02"]
[Round "7.3"]
[White "Mooser, Stefan"]
[Black "Spitzl, Vinzent"]
[Result "1/2-1/2"]
[ECO "D30"]
[WhiteElo "2215"]
[BlackElo "2263"]
[Annotator "ChessBase"]
[PlyCount "39"]
[EventDate "2019.05.12"]
[EventType "swiss"]
[EventCountry "GER"]
[SourceTitle "playchess.com"]
[Source "ChessBase"]
[SourceQuality "1"]
[TimeControl "40/5400+30:900+30"]

1. d4 {[%emt 0:00:00]} d5 {[%emt 0:00:08]} 2. c4 {[%emt 0:00:00]} e6 {[%emt 0:00:29]} 3. Nf3 {[%emt 0:00:17]} Nf6 {[%emt 0:00:06]} 4. g3 {[%emt 0:00:19]} Bb4+ {[%emt 0:00:37]} 5. Bd2 {[%emt 0:00:14]} Bd6 {[%emt 0:00:06]} 6. Bg2 {[%emt 0:00:46]} O-O {[%emt 0:01:45]} 7. O-O {[%emt 0:00:06]} Nbd7 {[%emt 0:01:20]} 8. Qc2 {[%emt 0:01:06]} c6 {[%emt 0:00:07]} 9. Rd1 {[%emt 0:06:10]} Ne4 {[%emt 0:00:31]} 10. Be1 {[%emt 0:00:29]} f5 {[%emt 0:01:14]} 11. b4 {[%emt 0:00:33]} Qe7 {[%emt 0:06:52]} 12. b5 {[%emt 0:12:25]} dxc4 {[%emt 0:05:44]} 13. bxc6 {[%emt 0:04:44]} Nb6 {[%emt 0:00:54]} 14. Nbd2 {[%emt 0:04:22]} Nxd2 {[%emt 0:13:24]} 15. Nxd2 {[%emt 0:01:49]} bxc6 {[%emt 0:02:01]} 16. Nxc4 {[%emt 0:01:34]} Nxc4 {[%emt 0:01:39]} 17. Qxc4 {[%emt 0:00:07]} Rb8 {[%emt 0:00:18]} 18. Rab1 {[%emt 0:09:17]} Rxb1 {[%emt 0:05:35]} 19. Rxb1 {[%emt 0:00:02]} c5 {[%emt 0:01:18]} 20. dxc5 {[%emt 0:12:52]} 1/2-1/2

[Event "Bamberg-Open 2019"]
[Site "Bamberg"]
[Date "2019.06.02"]
[Round "7.4"]
[White "Weishaeutel, Moritz"]
[Black "Plat, Vojtech"]
[Result "0-1"]
[ECO "C41"]
[WhiteElo "2252"]
[BlackElo "2540"]
[Annotator "ChessBase"]
[PlyCount "96"]
[EventDate "2019.05.12"]
[EventType "swiss"]
[EventCountry "GER"]
[SourceTitle "playchess.com"]
[Source "ChessBase"]
[SourceQuality "1"]
[TimeControl "40/5400+30:900+30"]

1. e4 {[%emt 0:00:00]} e5 {[%emt 0:09:07]} 2. Nf3 {[%emt 0:00:00]} d6 {[%emt 0:00:05]} 3. d4 {[%emt 0:00:00]} exd4 {[%emt 0:00:04]} 4. Nxd4 {[%emt 0:00:00]} Nf6 {[%emt 0:00:06]} 5. Nc3 {[%emt 0:00:00]} Be7 {[%emt 0:00:05]} 6. Bf4 {[%emt 0:00:10]} O-O {[%emt 0:00:22]} 7. Qd2 {[%emt 0:00:05]} c6 {[%emt 0:00:03]} 8. O-O-O {[%emt 0:00:20]} b5 {[%emt 0:00:05]} 9. f3 {[%emt 0:00:12]} b4 {[%emt 0:00:15]} 10. Na4 {[%emt 0:00:43]} Bd7 {[%emt 0:00:05]} 11. g4 {[%emt 0:00:34]} c5 {[%emt 0:04:54]} 12. Nf5 {[%emt 0:00:31]} Bxa4 {[%emt 0:00:06]} 13. Nxe7+ {[%emt 0:00:05]} Qxe7 {[%emt 0:00:06]} 14. Bxd6 {[%emt 0:00:05]} Qe8 {[%emt 0:02:38]} 15. Bxc5 {[%emt 0:00:47]} Nbd7 {[%emt 0:00:35]} 16. Bxf8 {[%emt 0:07:55]} Qxf8 {[%emt 0:00:03]} 17. b3 {[%emt 0:01:09]} Bc6 {[%emt 0:00:08]} 18. Qd6 {[%emt 0:00:27]} Qxd6 {[%emt 0:06:22]} 19. Rxd6 {[%emt 0:00:02]} Ne5 {[%emt 0:00:07]} 20. Be2 {[%emt 0:16:26]} a5 {[%emt 0:08:22]} 21. Rhd1 {[%emt 0:01:56]} Ne8 {[%emt 0:00:16]} 22. f4 {[%emt 0:04:44]} Nxd6 {[%emt 0:00:06]} 23. Rxd6 {[%emt 0:00:01]} Bxe4 {[%emt 0:07:01]} 24. fxe5 {[%emt 0:00:07]} Kf8 {[%emt 0:00:03]} 25. Bb5 {[%emt 0:08:39]} Rc8 {[%emt 0:01:35]} 26. Bc4 {[%emt 0:00:58]} Rc5 {[%emt 0:04:38]} 27. Rd8+ {[%emt 0:23:46]} Ke7 {[%emt 0:00:08]} 28. Rg8 {[%emt 0:00:04]} Rxe5 {[%emt 0:02:27]} 29. Rxg7 {[%emt 0:00:07]} Bg6 {[%emt 0:00:02]} 30. Rg8 {[%emt 0:01:02]} Re1+ {[%emt 0:00:03]} 31. Kd2 {[%emt 0:12:54]} Rh1 {[%emt 0:00:10]} 32. Ra8 {[%emt 0:00:47]} Rxh2+ {[%emt 0:00:07]} 33. Be2 {[%emt 0:00:19]} h5 {[%emt 0:00:30]} 34. Ke3 {[%emt 0:03:36]} h4 {[%emt 0:00:10]} 35. Rxa5 {[%emt 0:04:44]} h3 {[%emt 0:00:44]} 36. Bd3 {[%emt 0:01:36]} Rxc2 {[%emt 0:05:57]} 37. Bxc2 {[%emt 0:03:28]} h2 {[%emt 0:00:05]} 38. Rh5 {[%emt 0:00:07]} Bxh5 {[%emt 0:00:06]} 39. Be4 {[%emt 0:00:02]} Bxg4 {[%emt 0:00:06]} 40. Kf4 {[%emt 0:00:06]} Bd1 {[%emt 0:00:48]} 41. Kg3 {[%emt 0:18:40]} Bc2 {[%emt 0:15:18]} 42. Bf3 {[%emt 0:03:53]} Bb1 {[%emt 0:00:04]} 43. Kxh2 {[%emt 0:00:03]} Bxa2 {[%emt 0:00:04]} 44. Bd5 {[%emt 0:01:20]} f5 {[%emt 0:00:06]} 45. Kg3 {[%emt 0:00:33]} Kd6 {[%emt 0:00:03]} 46. Bg8 {[%emt 0:00:29]} Ke5 {[%emt 0:00:02]} 47. Kf3 {[%emt 0:00:07]} Bb1 {[%emt 0:00:04]} 48. Ke3 {[%emt 0:00:29]} Be4 {[%emt 0:00:03] Kd4+} 0-1

[Event "Bamberg-Open 2019"]
[Site "Bamberg"]
[Date "2019.06.02"]
[Round "7.5"]
[White "Hirneise, Jens"]
[Black "Fiedorek, Michal"]
[Result "1/2-1/2"]
[ECO "B67"]
[WhiteElo "2375"]
[BlackElo "2088"]
[Annotator "ChessBase"]
[PlyCount "45"]
[EventDate "2019.05.12"]
[EventType "swiss"]
[EventCountry "GER"]
[SourceTitle "playchess.com"]
[Source "ChessBase"]
[SourceQuality "1"]
[TimeControl "40/5400+30:900+30"]

1. e4 {[%emt 0:00:00]} c5 {[%emt 0:00:00]} 2. Nf3 {[%emt 0:00:00]} d6 {[%emt 0:00:00]} 3. d4 {[%emt 0:00:00]} cxd4 {[%emt 0:00:00]} 4. Nxd4 {[%emt 0:00:00]} Nf6 {[%emt 0:00:00]} 5. Nc3 {[%emt 0:00:00]} Nc6 {[%emt 0:00:10]} 6. Bg5 {[%emt 0:00:00]} e6 {[%emt 0:00:10]} 7. Qd2 {[%emt 0:00:03]} a6 {[%emt 0:00:07]} 8. O-O-O {[%emt 0:00:07]} Bd7 {[%emt 0:00:23]} 9. f4 {[%emt 0:00:09]} b5 {[%emt 0:00:46]} 10. Bxf6 {[%emt 0:00:11]} gxf6 {[%emt 0:00:08]} 11. Kb1 {[%emt 0:00:08]} b4 {[%emt 0:00:18]} 12. Nce2 {[%emt 0:00:05]} Qb6 {[%emt 0:00:14]} 13. Nxc6 {[%emt 0:00:14]} Bxc6 {[%emt 0:00:08]} 14. f5 {[%emt 0:00:13]} e5 {[%emt 0:00:30]} 15. Ng3 {[%emt 0:00:14]} h5 {[%emt 0:00:18]} 16. Bc4 {[%emt 0:00:30]} h4 {[%emt 0:01:01]} 17. Nf1 {[%emt 0:00:08]} Qc5 {[%emt 0:00:31]} 18. Qd3 {[%emt 0:16:03]} Bh6 {[%emt 0:17:13]} 19. Nd2 {[%emt 0:08:20]} Bb5 {[%emt 0:05:14]} 20. Qb3 {[%emt 0:17:14]} O-O {[%emt 0:09:33]} 21. Bd3 {[%emt 0:17:44]} Rfc8 {[%emt 0:09:33]} 22. Nf3 {[%emt 0:00:55]} Rc6 {[%emt 0:21:52]} 23. Ne1 {[%emt 0:18:19]} 1/2-1/2

[Event "Bamberg-Open 2019"]
[Site "Bamberg"]
[Date "2019.06.02"]
[Round "7.6"]
[White "Gegenfurtner, Juergen"]
[Black "Kolb, Tobias"]
[Result "1-0"]
[ECO "B13"]
[WhiteElo "2323"]
[BlackElo "1915"]
[Annotator "ChessBase"]
[PlyCount "83"]
[EventDate "2019.05.12"]
[EventType "swiss"]
[EventCountry "GER"]
[SourceTitle "playchess.com"]
[Source "ChessBase"]
[SourceQuality "1"]
[TimeControl "40/5400+30:900+30"]

1. e4 {[%emt 0:00:00]} c6 {[%emt 0:00:00]} 2. d4 {[%emt 0:00:00]} d5 {[%emt 0:00:00]} 3. exd5 {[%emt 0:00:00]} cxd5 {[%emt 0:00:00]} 4. Bd3 {[%emt 0:00:00]} Nc6 {[%emt 0:00:00]} 5. c3 {[%emt 0:00:13]} Qc7 {[%emt 0:00:00]} 6. Nd2 {[%emt 0:03:33]} e5 {[%emt 0:05:28]} 7. dxe5 {[%emt 0:00:08]} Nxe5 {[%emt 0:00:31]} 8. Bb5+ {[%emt 0:01:42]} Bd7 {[%emt 0:01:41]} 9. Bxd7+ {[%emt 0:03:51]} Qxd7 {[%emt 0:02:52]} 10. Ndf3 {[%emt 0:01:02]} Nc6 {[%emt 0:06:01]} 11. Ne2 {[%emt 0:00:39]} Nf6 {[%emt 0:01:03]} 12. O-O {[%emt 0:00:27]} Bd6 {[%emt 0:03:34]} 13. Bf4 {[%emt 0:06:41]} O-O-O {[%emt 0:07:01]} 14. Bxd6 {[%emt 0:06:35]} Qxd6 {[%emt 0:01:15]} 15. Ned4 {[%emt 0:01:39]} Rhe8 {[%emt 0:05:02]} 16. Qa4 {[%emt 0:18:31]} Kb8 {[%emt 0:02:58]} 17. Nb5 {[%emt 0:04:26]} Qd7 {[%emt 0:04:18]} 18. Rfe1 {[%emt 0:03:15]} Ne4 {[%emt 0:10:23]} 19. Rad1 {[%emt 0:00:54]} a6 {[%emt 0:01:38]} 20. Nbd4 {[%emt 0:00:11]} g5 {[%emt 0:09:05]} 21. Nxc6+ {[%emt 0:07:35]} Qxc6 {[%emt 0:00:07]} 22. Qd4 {[%emt 0:00:32]} f5 {[%emt 0:05:46]} 23. Nxg5 {[%emt 0:02:18]} Rg8 {[%emt 0:06:52]} 24. Nxe4 {[%emt 0:04:21]} fxe4 {[%emt 0:00:16]} 25. Re3 {[%emt 0:01:42]} Rg5 {[%emt 0:03:12]} 26. Rg3 {[%emt 0:01:50]} Rdg8 {[%emt 0:00:18]} 27. Rxg5 {[%emt 0:01:03]} Rxg5 {[%emt 0:00:05]} 28. g3 {[%emt 0:00:28]} h5 {[%emt 0:01:24]} 29. b3 {[%emt 0:03:00]} b5 {[%emt 0:01:18]} 30. c4 {[%emt 0:01:12]} Kb7 {[%emt 0:03:10]} 31. cxd5 {[%emt 0:03:46]} Qd6 {[%emt 0:03:13]} 32. Qxe4 {[%emt 0:00:35]} Re5 {[%emt 0:00:39]} 33. Qf4 {[%emt 0:00:48]} Kb6 {[%emt 0:00:39]} 34. b4 {[%emt 0:01:28]} a5 {[%emt 0:00:58]} 35. a3 {[%emt 0:00:11]} axb4 {[%emt 0:01:08]} 36. axb4 {[%emt 0:00:11]} Kb7 {[%emt 0:02:32]} 37. Kg2 {[%emt 0:00:46]} Kb6 {[%emt 0:00:17]} 38. h3 {[%emt 0:03:23]} Kb7 {[%emt 0:00:00]} 39. Kh2 {[%emt 0:01:26]} Ka6 {[%emt 0:00:09]} 40. Rd2 {[%emt 0:00:30]} Kb7 {[%emt 0:00:30]} 41. Re2 {[%emt 0:17:52]} Rxd5 42. Qf7+ 1-0

[Event "Bamberg-Open 2019"]
[Site "Bamberg"]
[Date "2019.06.02"]
[Round "7.7"]
[White "Ziegenfuss, Holger"]
[Black "Hacker, Jonas"]
[Result "1-0"]
[ECO "C50"]
[WhiteElo "2006"]
[BlackElo "2386"]
[Annotator "ChessBase"]
[PlyCount "119"]
[EventDate "2019.05.12"]
[EventType "swiss"]
[EventCountry "GER"]
[SourceTitle "playchess.com"]
[Source "ChessBase"]
[SourceQuality "1"]
[TimeControl "40/5400+30:900+30"]

1. e4 {[%emt 0:00:00]} e5 {[%emt 0:00:00]} 2. Nf3 {[%emt 0:01:47]} Nc6 {[%emt 0:00:00]} 3. Bc4 {[%emt 0:00:05]} Nf6 {[%emt 0:00:00]} 4. d3 {[%emt 0:00:58]} Bc5 {[%emt 0:00:00]} 5. Nc3 {[%emt 0:02:56]} a6 {[%emt 0:01:22]} 6. a3 {[%emt 0:00:43]} d6 {[%emt 0:00:25]} 7. Be3 {[%emt 0:08:57]} Ba7 {[%emt 0:05:25]} 8. Bxa7 {[%emt 0:03:13]} Rxa7 {[%emt 0:00:16]} 9. h3 {[%emt 0:00:27]} O-O {[%emt 0:04:44]} 10. O-O {[%emt 0:03:44]} Be6 {[%emt 0:07:13]} 11. Ba2 {[%emt 0:10:01]} Bxa2 {[%emt 0:03:10]} 12. Rxa2 {[%emt 0:00:08]} d5 {[%emt 0:00:14]} 13. Ra1 {[%emt 0:03:15]} Ra8 {[%emt 0:00:32]} 14. Re1 {[%emt 0:03:46]} Re8 {[%emt 0:00:34]} 15. Qd2 {[%emt 0:07:36]} dxe4 {[%emt 0:08:48]} 16. dxe4 {[%emt 0:02:19]} Nd4 {[%emt 0:01:58]} 17. Qd1 {[%emt 0:05:36]} c5 {[%emt 0:06:03]} 18. Nd2 {[%emt 0:00:39]} Qc7 {[%emt 0:03:11]} 19. Nf1 {[%emt 0:07:15]} Qc6 {[%emt 0:06:14]} 20. f3 {[%emt 0:05:31]} Rad8 {[%emt 0:01:19]} 21. Qc1 {[%emt 0:01:44]} Nh5 {[%emt 0:06:52]} 22. Ne2 {[%emt 0:17:01]} Qg6 {[%emt 0:11:04]} 23. Kh2 Nf4 {[%emt 0:00:02]} 24. Nxf4 {[%emt 0:03:34]} exf4 {[%emt 0:01:59]} 25. Rb1 Qg5 26. c3 {[%emt 0:01:51]} Nb3 {[%emt 0:07:36]} 27. Qc2 {[%emt 0:00:07]} c4 {[%emt 0:00:05]} 28. Rbd1 {[%emt 0:00:28]} Nc5 {[%emt 0:06:45]} 29. Rd4 {[%emt 0:03:06]} b5 {[%emt 0:02:16]} 30. Red1 Ne6 31. Rd5 {[%emt 0:01:56]} Qh4 {[%emt 0:01:02]} 32. Kg1 h6 {[%emt 0:00:57]} 33. Qf2 {[%emt 0:00:55]} Qe7 {[%emt 0:01:35]} 34. Qb6 {[%emt 0:00:49]} Ra8 {[%emt 0:00:34]} 35. Rd6 {[%emt 0:00:41]} Rec8 {[%emt 0:02:12]} 36. R1d5 {[%emt 0:00:47]} Qa7 {[%emt 0:00:52]} 37. Qxa7 {[%emt 0:01:15]} Rxa7 {[%emt 0:00:05]} 38. Rd2 Nc5 {[%emt 0:01:32]} 39. Nh2 {[%emt 0:01:47]} h5 {[%emt 0:01:41]} 40. Kf1 {[%emt 0:01:42]} Re7 {[%emt 0:02:22]} 41. R6d5 {[%emt 0:16:43]} g6 {[%emt 0:15:25]} 42. Kg1 {[%emt 0:01:40]} Kg7 {[%emt 0:01:40]} 43. Nf1 {[%emt 0:00:06]} Rc6 {[%emt 0:03:52]} 44. Kh2 {[%emt 0:00:00]} Kf6 {[%emt 0:00:00]} 45. g3 {[%emt 0:00:00]} Nd3 {[%emt 0:00:00]} 46. gxf4 {[%emt 0:00:00]} Nxf4 {[%emt 0:00:00]} 47. Rd8 {[%emt 0:00:00]} Kg5 {[%emt 0:00:00]} 48. Ne3 {[%emt 0:00:00]} f5 {[%emt 0:00:00]} 49. Nd5 {[%emt 0:00:00]} Re5 {[%emt 0:00:00]} 50. h4+ {[%emt 0:00:00]} Kxh4 {[%emt 0:00:00]} 51. Nxf4 {[%emt 0:00:00]} Kg5 {[%emt 0:00:00]} 52. Nd5 {[%emt 0:00:00]} Kh6 {[%emt 0:00:00]} 53. exf5 {[%emt 0:00:00]} gxf5 {[%emt 0:00:00]} 54. Rg2 {[%emt 0:00:02]} Rg6 {[%emt 0:00:00]} 55. Rd2 {[%emt 0:01:46]} Re1 {[%emt 0:02:00]} 56. Nf4 {[%emt 0:01:33]} Rgg1 {[%emt 0:02:04]} 57. Nh3 {[%emt 0:01:49]} Rgf1 {[%emt 0:01:32]} 58. Kg2 {[%emt 0:00:16]} Rb1 {[%emt 0:00:18]} 59. R8d6+ {[%emt 0:00:11]} Kg7 {[%emt 0:00:11]} 60. Rxa6 {[%emt 0:00:05]} 1-0

[Event "Bamberg-Open 2019"]
[Site "Bamberg"]
[Date "2019.06.02"]
[Round "7.8"]
[White "Langheinrich, Ferenc"]
[Black "Becker, Tobias"]
[Result "1-0"]
[ECO "B07"]
[WhiteElo "2379"]
[BlackElo "2019"]
[Annotator "ChessBase"]
[PlyCount "55"]
[EventDate "2019.05.12"]
[EventType "swiss"]
[EventCountry "GER"]
[SourceTitle "playchess.com"]
[Source "ChessBase"]
[SourceQuality "1"]
[TimeControl "40/5400+30:900+30"]

1. e4 {[%emt 0:05:28]} d6 {[%emt 0:00:00]} 2. d4 {[%emt 0:00:06]} Nf6 {[%emt 0:00:00]} 3. Nc3 {[%emt 0:00:07]} Nbd7 {[%emt 0:00:00]} 4. Nf3 {[%emt 0:00:12]} e5 {[%emt 0:00:00]} 5. g4 {[%emt 0:00:07]} d5 {[%emt 0:00:26]} 6. dxe5 {[%emt 0:11:20]} dxe4 {[%emt 0:05:22]} 7. Ng5 {[%emt 0:03:59]} Nxe5 {[%emt 0:16:47]} 8. Qxd8+ {[%emt 0:03:37]} Kxd8 {[%emt 0:01:37]} 9. Bf4 {[%emt 0:00:22]} Nf3+ {[%emt 0:19:03]} 10. Nxf3 {[%emt 0:12:00]} exf3 {[%emt 0:00:03]} 11. O-O-O+ {[%emt 0:01:22]} Bd7 {[%emt 0:00:12]} 12. g5 {[%emt 0:06:40]} Ne8 {[%emt 0:00:40]} 13. Ne4 {[%emt 0:04:27]} Nd6 {[%emt 0:04:51]} 14. Nc5 {[%emt 0:02:57]} Bc6 {[%emt 0:02:19]} 15. b4 {[%emt 0:01:20]} a6 {[%emt 0:03:37]} 16. Bh3 {[%emt 0:05:23]} Be7 {[%emt 0:15:15]} 17. Rhe1 {[%emt 0:03:00]} Re8 {[%emt 0:02:29]} 18. Bg4 {[%emt 0:04:26]} Bf8 {[%emt 0:02:00]} 19. Be5 {[%emt 0:00:56]} b6 {[%emt 0:13:51]} 20. Re3 {[%emt 0:05:55]} bxc5 {[%emt 0:01:26]} 21. bxc5 {[%emt 0:00:06]} f6 {[%emt 0:02:03]} 22. gxf6 {[%emt 0:00:37]} gxf6 {[%emt 0:00:05]} 23. Bxf6+ {[%emt 0:00:10]} Be7 {[%emt 0:00:02]} 24. Rxe7 {[%emt 0:01:18]} Rxe7 {[%emt 0:00:04]} 25. cxd6 {[%emt 0:00:38]} cxd6 {[%emt 0:00:19]} 26. Rxd6+ {[%emt 0:01:23]} Kc7 {[%emt 0:00:43]} 27. Bxe7 {[%emt 0:01:51]} Re8 {[%emt 0:01:03]} 28. Re6 {[%emt 0:00:13]} 1-0

[Event "Bamberg-Open 2019"]
[Site "Bamberg"]
[Date "2019.06.02"]
[Round "7.9"]
[White "Scholz, Christian"]
[Black "Ammon, Tobias"]
[Result "1-0"]
[ECO "D11"]
[WhiteElo "2372"]
[BlackElo "2151"]
[Annotator "ChessBase"]
[PlyCount "49"]
[EventDate "2019.05.12"]
[EventType "swiss"]
[EventCountry "GER"]
[SourceTitle "playchess.com"]
[Source "ChessBase"]
[SourceQuality "1"]
[TimeControl "40/5400+30:900+30"]

1. d4 {[%emt 0:00:00]} d5 {[%emt 0:00:24]} 2. c4 {[%emt 0:00:00]} c6 {[%emt 0:00:03]} 3. Nf3 {[%emt 0:00:00]} Nf6 {[%emt 0:00:14]} 4. e3 {[%emt 0:00:00]} Bg4 {[%emt 0:01:56]} 5. h3 {[%emt 0:00:04]} Bh5 {[%emt 0:00:17]} 6. cxd5 {[%emt 0:12:29]} Bxf3 {[%emt 0:00:06]} 7. Qxf3 {[%emt 0:00:06]} cxd5 {[%emt 0:00:08]} 8. Bd3 {[%emt 0:02:49]} Nc6 {[%emt 0:00:44]} 9. O-O {[%emt 0:01:59]} e6 {[%emt 0:00:19]} 10. b3 {[%emt 0:10:37]} a6 {[%emt 0:01:53]} 11. Nc3 {[%emt 0:07:47]} Bb4 {[%emt 0:05:45]} 12. Bb2 {[%emt 0:03:01]} O-O {[%emt 0:00:27]} 13. Rac1 {[%emt 0:01:57]} Qe7 {[%emt 0:10:00]} 14. Na4 {[%emt 0:10:29]} Bd6 {[%emt 0:02:48]} 15. Qe2 {[%emt 0:10:53]} Rac8 {[%emt 0:08:51]} 16. Bb1 {[%emt 0:07:59]} Ne4 {[%emt 0:15:54]} 17. Bxe4 {[%emt 0:01:32]} dxe4 {[%emt 0:00:19]} 18. Nc5 {[%emt 0:03:03]} Nb4 {[%emt 0:07:48]} 19. Nxe4 {[%emt 0:01:55]} Nxa2 {[%emt 0:00:13]} 20. Rxc8 {[%emt 0:00:07]} Rxc8 {[%emt 0:00:06]} 21. d5 {[%emt 0:02:22]} Nb4 {[%emt 0:03:45]} 22. dxe6 {[%emt 0:01:29]} fxe6 {[%emt 0:02:35]} 23. Qg4 {[%emt 0:00:51]} Bb8 {[%emt 0:03:30]} 24. Rd1 {[%emt 0:00:35]} Nc6 {[%emt 0:06:20]} 25. Rd7 {[%emt 0:00:29]} 1-0

[Event "Bamberg-Open 2019"]
[Site "Bamberg"]
[Date "2019.06.02"]
[Round "7.10"]
[White "Sukaylo, Aleksey"]
[Black "Delitzsch, Juergen"]
[Result "0-1"]
[ECO "B36"]
[WhiteElo "2097"]
[BlackElo "2175"]
[Annotator "ChessBase"]
[PlyCount "76"]
[EventDate "2019.05.12"]
[EventType "swiss"]
[EventCountry "GER"]
[SourceTitle "playchess.com"]
[Source "ChessBase"]
[SourceQuality "1"]
[TimeControl "40/5400+30:900+30"]

1. e4 {[%emt 0:00:00]} c5 {[%emt 0:00:00]} 2. Nf3 {[%emt 0:00:00]} Nc6 {[%emt 0:00:00]} 3. d4 {[%emt 0:00:00]} cxd4 {[%emt 0:00:00]} 4. Nxd4 {[%emt 0:00:00]} g6 {[%emt 0:00:00]} 5. c4 {[%emt 0:00:01]} Nf6 {[%emt 0:00:16]} 6. Nc3 {[%emt 0:00:06]} d6 {[%emt 0:00:08]} 7. Be2 {[%emt 0:01:19]} Nxd4 {[%emt 0:00:11]} 8. Qxd4 {[%emt 0:00:05]} Bg7 {[%emt 0:00:05]} 9. Be3 {[%emt 0:04:34]} O-O {[%emt 0:00:06]} 10. Qd2 {[%emt 0:00:06]} a5 {[%emt 0:00:16]} 11. O-O {[%emt 0:01:31]} a4 {[%emt 0:00:07]} 12. f3 {[%emt 0:02:17]} Be6 {[%emt 0:01:07]} 13. b4 {[%emt 0:02:40]} axb3 {[%emt 0:11:55]} 14. axb3 {[%emt 0:00:12]} Nd7 {[%emt 0:00:14]} 15. Rxa8 {[%emt 0:11:01]} Qxa8 {[%emt 0:00:08]} 16. Nb5 {[%emt 0:00:04]} Rc8 {[%emt 0:12:26]} 17. Rb1 {[%emt 0:21:32]} Nc5 {[%emt 0:05:14]} 18. Nd4 {[%emt 0:02:39]} Bd7 {[%emt 0:03:16]} 19. b4 {[%emt 0:04:17]} Ne6 {[%emt 0:00:29]} 20. c5 {[%emt 0:01:09]} Nxd4 {[%emt 0:09:46]} 21. Bxd4 {[%emt 0:00:05]} Bxd4+ {[%emt 0:00:11]} 22. Qxd4 {[%emt 0:00:06]} Qa2 {[%emt 0:01:15]} 23. Re1 {[%emt 0:09:57]} Be6 {[%emt 0:03:19]} 24. cxd6 {[%emt 0:03:11]} exd6 {[%emt 0:00:17]} 25. Qxd6 {[%emt 0:00:14]} Qa7+ {[%emt 0:06:48]} 26. Kf1 {[%emt 0:05:33]} Rc2 {[%emt 0:11:18]} 27. Rd1 {[%emt 0:00:43]} Bc4 {[%emt 0:06:15]} 28. Rd2 {[%emt 0:03:21]} Rc1+ {[%emt 0:00:45]} 29. Rd1 {[%emt 0:00:04]} Rc2 {[%emt 0:04:43]} 30. Rd2 {[%emt 0:03:58]} Rc1+ {[%emt 0:01:11]} 31. Rd1 {[%emt 0:00:04]} Qa1 {[%emt 0:04:52]} 32. Rxc1 {[%emt 0:01:47]} Qxc1+ {[%emt 0:00:08]} 33. Kf2 {[%emt 0:00:08]} Qb2 {[%emt 0:00:18]} 34. Qd1 {[%emt 0:04:49]} Bxe2 {[%emt 0:01:03]} 35. Qxe2 {[%emt 0:00:02]} Qxb4 {[%emt 0:00:09]} 36. f4 {[%emt 0:01:10]} f5 {[%emt 0:02:26]} 37. exf5 {[%emt 0:10:52]} Qxf4+ {[%emt 0:01:43]} 38. Qf3 {[%emt 0:03:08]} Qxf5 {[%emt 0:01:05]} 0-1

[Event "Bamberg-Open 2019"]
[Site "Bamberg"]
[Date "2019.06.02"]
[Round "7.11"]
[White "Promyshlyanskiy, Vitaliy"]
[Black "Legahn, Dirk"]
[Result "1-0"]
[ECO "B23"]
[WhiteElo "2282"]
[BlackElo "2132"]
[Annotator "ChessBase"]
[PlyCount "38"]
[EventDate "2019.05.12"]
[EventType "swiss"]
[EventCountry "GER"]
[SourceTitle "playchess.com"]
[Source "ChessBase"]
[SourceQuality "1"]
[TimeControl "40/5400+30:900+30"]

1. e4 {[%emt 0:00:00]} c5 {[%emt 0:00:00]} 2. Nc3 {[%emt 0:00:00]} d6 {[%emt 0:00:00]} 3. f4 {[%emt 0:00:15]} Nc6 {[%emt 0:00:13]} 4. Nf3 {[%emt 0:01:15]} Nf6 {[%emt 0:00:26]} 5. Bb5 {[%emt 0:00:35]} e6 {[%emt 0:08:55]} 6. Bxc6+ {[%emt 0:01:00]} bxc6 {[%emt 0:00:07]} 7. d3 {[%emt 0:00:26]} Be7 {[%emt 0:02:34]} 8. O-O {[%emt 0:02:14]} O-O {[%emt 0:08:03]} 9. b3 {[%emt 0:01:21]} Rb8 {[%emt 0:04:34]} 10. Qe2 {[%emt 0:07:17]} Ba6 {[%emt 0:08:45]} 11. Na4 {[%emt 0:01:08]} Nd7 {[%emt 0:16:36]} 12. c4 {[%emt 0:09:08]} Bf6 {[%emt 0:03:08]} 13. Rb1 {[%emt 0:02:26]} Bc8 {[%emt 0:18:14]} 14. Bd2 {[%emt 0:04:49]} g6 {[%emt 0:03:21]} 15. e5 {[%emt 0:06:41]} Be7 {[%emt 0:02:08]} 16. Be3 {[%emt 0:02:43]} Qc7 {[%emt 0:01:03]} 17. Qf2 {[%emt 0:01:24]} dxe5 {[%emt 0:01:12]} 18. fxe5 {[%emt 0:01:07]} Nxe5 {[%emt 0:01:03]} 19. Nxe5 {[%emt 0:00:09]} Qxe5 {[%emt 0:00:06]} 1-0